bitfinex-derivatives/quotes_BTCF0:USTF0_20250811
["timestamp","ask_amount","ask_price","bid_price","bid_amount"]
[1754878714581,1.59831,121060.0,121050.0,0.16929]
[1754878715386,1.59755,121060.0,121050.0,0.16929]
[1754878715686,1.59671,121060.0,121050.0,0.66929]
[1754878715886,1.59771,121060.0,121050.0,0.66929]
[1754878716185,0.64267,121060.0,121050.0,0.5001]
[1754878716489,1.59659,121060.0,121050.0,0.57182777]
[1754878716986,1.59575,121060.0,121050.0,0.57182777]
[1754878717187,0.64267,121060.0,121050.0,0.57182777]
[1754878717489,0.64267,121060.0,121050.0,0.80442777]
[1754878717690,1.59559,121060.0,121050.0,0.80442777]
[1754878717889,1.59559,121060.0,121050.0,1.18322249]
[1754878718286,0.001,121060.0,121050.0,1.62661739]
[1754878718483,0.04751,121070.0,121050.0,1.55920439]
[1754878718688,0.95244,121060.0,121050.0,1.18040967]
[1754878718990,0.95244,121060.0,121050.0,1.41300967]
[1754878719193,0.95244,121060.0,121050.0,1.16622777]
[1754878719386,0.001,121060.0,121050.0,1.16622777]
[1754878719598,0.95016,121060.0,121050.0,1.16722777]
[1754878719893,0.95016,121060.0,121050.0,1.54602249]
[1754878720191,0.95016,121060.0,121050.0,1.16722777]
[1754878720490,0.95016,121060.0,121050.0,1.54602249]
[1754878720687,0.04751,121070.0,121050.0,0.93462777]
[1754878720890,0.99757,121060.0,121050.0,0.57382777]
[1754878721093,0.94864,121060.0,121050.0,0.93462777]
[1754878721480,0.94864,121060.0,121050.0,1.16822777]
[1754878721681,0.0001,121070.0,121060.0,0.2326]
[1754878721881,0.04741,121090.0,121080.0,0.2326]
[1754878722080,1.5032,121100.0,121080.0,0.61139472]
[1754878722293,1.1424,121100.0,121090.0,0.64594472]
[1754878722494,2.0894,121100.0,121090.0,0.64594472]
[1754878722692,1.1424,121100.0,121090.0,0.61139472]
[1754878722890,2.08864,121100.0,121090.0,0.81120472]
[1754878723099,2.0886,121100.0,121090.0,1.17200472]
[1754878723294,0.9463,121110.0,121090.0,1.83713732]
[1754878723496,0.9463,121110.0,121100.0,1.00674472]
[1754878723688,0.9463,121110.0,121100.0,1.00684472]
[1754878723689,0.9462,121110.0,121100.0,1.00684472]
[1754878724088,0.5709,121120.0,121110.0,0.2326]
[1754878724394,1.58783,121120.0,121110.0,0.2368]
[1754878724598,1.58783,121120.0,121110.0,0.61559472]
[1754878724798,0.21,121120.0,121110.0,0.61559472]
[1754878724995,0.04751,121130.0,121120.0,0.26715]
[1754878725190,0.99049,121130.0,121120.0,0.64604472]
[1754878725700,0.99049,121130.0,121120.0,0.71170528]
[1754878725997,0.04741,121130.0,121120.0,0.71170528]
[1754878726208,0.98913,121130.0,121120.0,0.71170528]
[1754878726594,1.22383,121130.0,121120.0,0.22812056]
[1754878727194,1.22383,121130.0,121120.0,0.72812056]
[1754878727701,1.22383,121130.0,121120.0,0.79836056]
[1754878728092,0.04751,121140.0,121130.0,0.2326]
[1754878728288,1.58167,121140.0,121130.0,0.0001]
[1754878728493,1.58139,121140.0,121130.0,0.0001]
[1754878728894,1.95986472,121140.0,121130.0,0.0001]
[1754878729087,0.64291,121140.0,121130.0,0.0001]
[1754878729292,1.58039,121140.0,121130.0,0.0001]
[1754878729790,1.58339,121140.0,121130.0,0.0001]
[1754878729999,0.64591,121140.0,121130.0,0.0001]
[1754878730199,1.58251,121140.0,121130.0,0.0001]
[1754878730402,1.58219,121140.0,121130.0,0.0001]
[1754878730900,1.58219,121140.0,121120.0,0.06976056]
[1754878730901,1.10723812,121140.0,121120.0,0.06976056]
[1754878731093,0.21,121120.0,121100.0,7.74e-05]
[1754878731290,0.28211,121110.0,121100.0,0.66016212]
[1754878731602,0.64291,121110.0,121100.0,0.66016212]
[1754878731801,0.64291,121110.0,121100.0,7.74e-05]
[1754878731995,1.57703,121110.0,121100.0,0.0041774]
[1754878732197,1.57659,121110.0,121100.0,0.0042774]
[1754878732396,0.28211,121110.0,121100.0,0.66436212]
[1754878732700,1.21507,121110.0,121100.0,1.16436212]
[1754878732900,1.21463,121110.0,121100.0,1.16436212]
[1754878733095,1.57543,121110.0,121100.0,0.5042774]
[1754878733302,0.64291,121110.0,121100.0,0.5042774]
[1754878733503,1.57455,121110.0,121100.0,0.5042774]
[1754878733706,0.64291,121110.0,121100.0,0.5042774]
[1754878733904,1.57455,121110.0,121100.0,0.5042774]
[1754878734701,0.3609,121120.0,121100.0,1.34180052]
[1754878734896,0.52349,121120.0,121110.0,0.66008472]
[1754878735104,0.16259,121120.0,121110.0,0.74273852]
[1754878735409,0.92964,121120.0,121110.0,0.74273852]
[1754878735595,0.92964,121120.0,121110.0,0.66018472]
[1754878735800,0.5956,121130.0,121110.0,1.32529232]
[1754878735999,0.93032,121120.0,121110.0,0.78139]
[1754878736207,1.14032,121120.0,121110.0,0.8639438]
[1754878736510,1.14132,121120.0,121110.0,0.8639438]
[1754878736901,1.13904,121120.0,121110.0,0.8639438]
[1754878737106,1.13904,121120.0,121110.0,1.16018472]
[1754878737808,1.13804,121120.0,121110.0,1.16018472]
[1754878738012,1.13804,121120.0,121110.0,1.16118472]
[1754878738409,0.28311,121120.0,121110.0,1.16118472]
[1754878738606,1.20835,121120.0,121110.0,1.16118472]
[1754878740108,1.20835,121120.0,121110.0,1.09094472]
[1754878740303,1.56787,121120.0,121110.0,0.5011]
[1754878740617,1.20573072,121120.0,121100.0,7.74e-05]
[1754878740800,1.51758,121110.0,121100.0,7.74e-05]
[1754878741108,0.07211,121080.0,121070.0,0.04869]
[1754878741311,0.5955,121080.0,121070.0,0.04869]
[1754878741500,0.3608,121080.0,121070.0,0.67242582]
[1754878741701,0.5955,121080.0,121070.0,0.58984472]
[1754878741910,0.36087288,121080.0,121070.0,0.66018472]
[1754878742111,0.59557288,121080.0,121070.0,0.66018472]
[1754878742313,0.59557288,121080.0,121070.0,0.0001]
[1754878742610,1.51593288,121080.0,121070.0,0.5001]
[1754878742814,1.51701288,121080.0,121070.0,0.5011]
[1754878743120,0.59657288,121080.0,121070.0,0.5011]
[1754878743308,0.59657288,121080.0,121070.0,0.54879]
[1754878743512,1.51633288,121080.0,121070.0,0.55079]
[1754878744213,1.51609288,121080.0,121070.0,0.55079]
[1754878744709,0.91847288,121080.0,121070.0,1.24476582]
[1754878744911,0.00207288,121080.0,121070.0,1.24476582]
[1754878745107,0.00207288,121080.0,121070.0,1.60556582]
[1754878745308,0.91963288,121080.0,121070.0,1.60556582]
[1754878745514,0.91728,121080.0,121070.0,1.77074982]
[1754878745816,1.14154,121090.0,121080.0,0.3702142]
[1754878746006,1.14154,121090.0,121080.0,1.10990892]
[1754878746007,2.0584,121090.0,121080.0,1.10990892]
[1754878746202,1.14144,121090.0,121080.0,1.10990892]
[1754878746412,2.0584,121090.0,121080.0,1.10990892]
[1754878746909,2.0584,121090.0,121080.0,1.60990892]
[1754878747106,1.57655,121120.0,121100.0,0.28764]
[1754878747314,1.1416,121120.0,121110.0,0.66643472]
[1754878747510,2.05692,121120.0,121110.0,0.66643472]
[1754878748419,1.1416,121120.0,121110.0,0.66643472]
[1754878748717,2.05656,121120.0,121110.0,0.66653472]
[1754878748913,2.27485,121120.0,121110.0,0.66653472]
[1754878749109,2.27485,121120.0,121110.0,0.66753472]
[1754878749510,2.27485,121120.0,121110.0,1.16753472]
[1754878750313,2.27385,121120.0,121110.0,1.16753472]
[1754878751418,2.348,121120.0,121110.0,1.16753472]
[1754878752415,2.348,121120.0,121110.0,1.17163472]
[1754878752612,1.79484,121120.0,121110.0,0.5052]
[1754878753017,2.70368,121120.0,121110.0,0.5052]
[1754878753216,1.79484,121120.0,121110.0,0.5052]
[1754878753411,2.70368,121120.0,121110.0,0.5052]
[1754878753617,2.70332,121120.0,121110.0,0.88399472]
[1754878754614,2.70532,121120.0,121110.0,0.88399472]
[1754878754809,2.70532,121120.0,121110.0,0.88299472]
[1754878755009,2.70632,121120.0,121110.0,0.88299472]
[1754878755613,2.34552,121120.0,121110.0,0.88299472]
[1754878756224,2.70552,121120.0,121110.0,0.88299472]
[1754878756517,1.1446,121120.0,121110.0,1.71833687]
[1754878756716,0.0001,121130.0,121120.0,0.3701868]
[1754878756918,0.90468,121130.0,121120.0,1.34017121]
[1754878757315,0.0001,121140.0,121130.0,0.08254]
[1754878757520,0.90456,121140.0,121130.0,0.91415472]
[1754878757720,0.90472,121140.0,121130.0,0.62651472]
[1754878758020,0.90396,121140.0,121130.0,0.54397472]
[1754878758219,0.65334,121150.0,121130.0,0.54397472]
[1754878758418,0.65334,121150.0,121140.0,0.59782472]
[1754878758620,1.55684,121150.0,121140.0,0.59792472]
[1754878758815,1.55684,121150.0,121140.0,0.21913]
[1754878759018,1.55608,121150.0,121140.0,0.21913]
[1754878759321,0.3628,121150.0,121140.0,0.66653472]
[1754878759522,0.002,121150.0,121140.0,1.19651362]
[1754878760218,0.9038,121150.0,121140.0,1.19651362]
[1754878760723,0.002,121150.0,121140.0,1.19651362]
[1754878761023,0.90344,121150.0,121140.0,1.36160161]
[1754878761223,0.90344,121150.0,121140.0,1.36560161]
[1754878761421,0.0001,121160.0,121140.0,1.98261863]
[1754878761624,0.0001,121160.0,121150.0,1.10976112]
[1754878761821,0.89964,121160.0,121150.0,1.27490982]
[1754878762217,1.14154,121170.0,121160.0,0.3701595]
[1754878762525,2.04072,121170.0,121160.0,1.10985422]
[1754878762719,1.14144,121170.0,121160.0,1.10985422]
[1754878762920,2.04,121170.0,121160.0,1.10985422]
[1754878763118,1.14144,121170.0,121160.0,1.10985422]
[1754878763416,1.79468,121170.0,121160.0,0.0001]
[1754878763822,2.69164,121170.0,121160.0,0.0001]
[1754878764021,1.50224,121170.0,121160.0,0.0001]
[1754878764322,1.14144,121170.0,121160.0,1.1923863]
[1754878764523,2.03792,121170.0,121160.0,1.6923863]
[1754878765124,1.14144,121170.0,121160.0,1.6923863]
[1754878765529,0.0001,121180.0,121160.0,1.8584216]
[1754878765717,0.0001,121180.0,121170.0,0.82210782]
[1754878765917,1.11365,121180.0,121170.0,1.27897142]
[1754878766126,1.11365,121180.0,121170.0,1.19645832]
[1754878766324,0.29244,121180.0,121170.0,0.96282472]
[1754878766821,1.5474,121180.0,121170.0,0.0042]
[1754878767225,1.5474,121180.0,121170.0,0.0052]
[1754878767226,0.65424,121180.0,121170.0,0.0052]
[1754878767420,1.54792,121180.0,121170.0,0.0011]
[1754878767616,1.54792,121180.0,121170.0,0.5011]
[1754878767820,1.54768,121180.0,121170.0,0.5011]
[1754878768222,0.65424,121180.0,121170.0,0.5011]
[1754878768621,1.54672,121180.0,121170.0,0.5011]
[1754878769222,0.29344,121180.0,121170.0,0.5011]
[1754878769422,1.18592,121180.0,121170.0,0.5011]
[1754878769624,0.29344,121180.0,121170.0,0.583613]
[1754878769821,1.18484,121180.0,121170.0,1.25004772]
[1754878770022,1.18484,121180.0,121170.0,0.871253]
[1754878770229,0.29344,121180.0,121170.0,1.25004772]
[1754878770427,0.89224,121180.0,121170.0,1.25004772]
[1754878770723,0.001,121180.0,121170.0,1.61084772]
[1754878771232,0.89536,121180.0,121170.0,1.31457827]
[1754878771421,0.89536,121180.0,121170.0,1.69337299]
[1754878771822,0.001,121180.0,121170.0,1.69337299]
[1754878772031,0.89492,121180.0,121170.0,1.69337299]
[1754878772326,0.21929,121180.0,121170.0,1.236153]
[1754878772515,0.29344,121180.0,121170.0,0.5052]
[1754878772921,1.18644,121180.0,121170.0,0.5052]
[1754878773119,0.29344,121180.0,121170.0,0.5052]
[1754878773324,1.18612,121180.0,121170.0,0.5052]
[1754878773529,1.54692,121180.0,121170.0,0.5052]
[1754878773828,0.65424,121180.0,121170.0,0.5052]
[1754878774021,1.54608,121180.0,121170.0,0.5052]
[1754878774428,0.65424,121180.0,121170.0,0.5052]
[1754878774628,1.54608,121180.0,121170.0,0.5052]
[1754878775128,1.11045,121180.0,121170.0,1.25414772]
[1754878775323,0.89216,121180.0,121170.0,1.61494772]
[1754878776130,0.89216,121180.0,121170.0,1.71573156]
[1754878776322,0.001,121180.0,121170.0,1.71573156]
[1754878776519,0.89216,121180.0,121170.0,1.61494772]
[1754878776724,0.001,121180.0,121170.0,1.61494772]
[1754878776926,0.0001,121190.0,121180.0,0.3684261]
[1754878777132,0.21478,121200.0,121190.0,0.3684193]
[1754878777327,0.43148,121210.0,121190.0,0.69560262]
[1754878777520,0.64616,121210.0,121200.0,0.59550472]
[1754878777724,1.53722,121210.0,121200.0,0.22091]
[1754878777927,0.64606,121210.0,121200.0,0.0042]
[1754878778126,1.53718,121210.0,121200.0,0.0042]
[1754878778323,0.64606,121210.0,121200.0,0.0042]
[1754878779025,1.54014,121210.0,121200.0,0.0042]
[1754878779335,0.003,121210.0,121200.0,1.17854377]
[1754878779533,0.003,121210.0,121200.0,1.11220722]
[1754878779728,0.89404,121210.0,121200.0,1.11220722]
[1754878780031,0.22168,121210.0,121200.0,1.25140722]
[1754878780826,1.1833,121210.0,121200.0,1.16891472]
[1754878781233,1.1833,121210.0,121200.0,1.25140842]
[1754878781426,1.1833,121210.0,121200.0,0.5042]
[1754878781427,0.29226,121210.0,121200.0,0.5042]
[1754878781632,1.18318,121210.0,121200.0,0.5042]
[1754878782233,1.18318,121210.0,121200.0,0.72091]
[1754878782736,1.54398,121210.0,121200.0,0.56718228]
[1754878783330,0.65306,121210.0,121200.0,0.56718228]
[1754878783533,1.54398,121210.0,121200.0,0.56718228]
[1754878783729,0.65306,121210.0,121200.0,0.56718228]
[1754878784332,1.54394,121210.0,121200.0,0.56718228]
[1754878784729,0.65306,121210.0,121200.0,0.56718228]
[1754878785028,0.65306,121210.0,121200.0,0.63914065]
[1754878785434,1.5439,121210.0,121200.0,0.63914065]
[1754878785633,1.54386,121210.0,121200.0,1.231897]
[1754878785838,0.58248,121210.0,121200.0,1.38634937]
[1754878786039,1.47328,121210.0,121200.0,1.38634937]
[1754878786538,1.47328,121210.0,121200.0,1.30385537]
[1754878787342,1.11244,121210.0,121200.0,1.314391]
[1754878787837,0.89772,121210.0,121200.0,1.318491]
[1754878788029,0.89772,121210.0,121200.0,1.39044937]
[1754878788232,0.007,121210.0,121200.0,1.235997]
[1754878788428,0.22168,121210.0,121200.0,1.318491]
[1754878788639,1.11236,121210.0,121200.0,1.318491]
[1754878789033,0.007,121210.0,121200.0,1.679291]
[1754878789342,0.007,121210.0,121200.0,1.318491]
[1754878789544,0.89764,121210.0,121200.0,1.235997]
[1754878789739,0.29226,121210.0,121200.0,1.235997]
[1754878789940,0.29226,121210.0,121200.0,0.85720228]
[1754878789941,1.18286,121210.0,121200.0,0.85720228]
[1754878790134,0.65306,121210.0,121200.0,0.57128228]
[1754878790330,1.54366,121210.0,121200.0,0.57128228]
[1754878790734,0.65306,121210.0,121200.0,0.64324065]
[1754878790935,0.65306,121210.0,121200.0,0.57128228]
[1754878791135,1.92241472,121210.0,121200.0,0.57128228]
[1754878791336,1.92237472,121210.0,121200.0,0.57128228]
[1754878791837,1.92237472,121210.0,121170.0,0.04588]
[1754878791838,0.04923,121200.0,121170.0,0.04588]
[1754878792037,0.3608,121200.0,121180.0,0.61883472]
[1754878792238,0.41003,121190.0,121180.0,0.24004]
[1754878792443,1.30051,121190.0,121180.0,0.24004]
[1754878792643,1.30051,121190.0,121180.0,0.29002]
[1754878792834,1.30051,121190.0,121180.0,0.22081]
[1754878793141,1.30051,121190.0,121180.0,0.22091]
[1754878793142,1.30047,121190.0,121180.0,0.22091]
[1754878793343,0.93967,121190.0,121180.0,0.3726287]
[1754878793543,0.93967,121190.0,121180.0,0.8726287]
[1754878793934,0.3609,121200.0,121180.0,1.11438863]
[1754878794135,0.0001,121200.0,121190.0,0.74721662]
[1754878794330,0.04933,121210.0,121200.0,0.28592]
[1754878794638,0.8904,121210.0,121200.0,0.53059982]
[1754878794836,1.55109,121220.0,121200.0,0.54388492]
[1754878795034,1.55109,121220.0,121210.0,0.28592]
[1754878795233,2.44139,121220.0,121210.0,0.29012]
[1754878796140,2.44135,121220.0,121210.0,0.29012]
[1754878796340,2.44135,121220.0,121210.0,0.0042]
[1754878796647,0.04503,121210.0,121200.0,0.5]
[1754878796846,0.78462472,121210.0,121200.0,0.5]
[1754878797043,1.83987272,121210.0,121200.0,0.5]
[1754878797340,0.40583,121210.0,121200.0,0.5]
[1754878797541,1.29603,121210.0,121200.0,0.5]
[1754878797744,1.29603,121210.0,121200.0,0.5001]
[1754878797945,1.461038,121210.0,121200.0,0.5001]
[1754878798149,1.461038,121210.0,121200.0,0.45507]
[1754878798150,1.25263272,121210.0,121200.0,0.45507]
[1754878798348,2.14279272,121210.0,121200.0,0.45507]
[1754878798536,1.25263272,121210.0,121200.0,0.45507]
[1754878798741,2.22924122,121210.0,121200.0,0.45507]
[1754878799049,0.85043,121200.0,121190.0,0.07195837]
[1754878799349,2.10135,121200.0,121190.0,0.07195837]
[1754878799547,2.10135,121200.0,121180.0,0.23942009]
[1754878799855,0.3608,121190.0,121180.0,0.19477011]
[1754878800042,1.25088,121190.0,121180.0,0.19477011]
[1754878800244,1.25088,121190.0,121180.0,0.18431888]
[1754878800744,1.25088,121190.0,121180.0,0.13843888]
[1754878800950,0.73959472,121190.0,121180.0,0.13843888]
[1754878801140,2.04619473,121190.0,121180.0,0.13843888]
[1754878801341,2.93615473,121190.0,121180.0,0.13843888]
[1754878801543,2.34619473,121190.0,121180.0,0.13843888]
[1754878801837,3.32065753,121190.0,121180.0,0.13843888]
[1754878802044,3.32061753,121190.0,121180.0,0.13843888]
[1754878802243,3.32061753,121190.0,121180.0,0.63843888]
[1754878802751,2.43069753,121190.0,121180.0,0.63843888]
[1754878803054,3.32061753,121190.0,121180.0,0.63843888]
[1754878803639,3.15557752,121190.0,121180.0,0.63843888]
[1754878803840,1.66940001,121190.0,121160.0,0.10108121]
[1754878804044,0.7216,121170.0,121160.0,0.29553259]
[1754878804242,1.6114,121170.0,121160.0,0.19445138]
[1754878804443,1.2506,121170.0,121160.0,0.51701458]
[1754878804847,1.2506,121170.0,121160.0,0.43449138]
[1754878805044,1.2507,121170.0,121160.0,0.43459138]
[1754878805350,1.2507,121170.0,121160.0,0.60098905]
[1754878805557,1.25062,121170.0,121160.0,1.10098905]
[1754878805748,0.3609,121170.0,121160.0,1.10098905]
[1754878805948,1.25066,121170.0,121160.0,1.48078377]
[1754878806148,1.25066,121170.0,121160.0,1.58196136]
[1754878806353,0.3608,121200.0,121180.0,0.0825081]
[1754878806648,0.3608,121200.0,121190.0,0.33437767]
[1754878806853,1.61132,121200.0,121190.0,0.33437767]
[1754878807050,0.88972,121200.0,121190.0,0.92064509]
[1754878807243,0.3608,121200.0,121190.0,0.16949767]
[1754878807446,1.62923472,121200.0,121190.0,0.71948767]
[1754878807645,1.25044,121200.0,121190.0,0.66959767]
[1754878807856,1.25244,121200.0,121190.0,0.5042]
[1754878808051,0.74159472,121200.0,121190.0,0.5042]
[1754878808258,1.25244,121200.0,121190.0,0.60537441]
[1754878808452,1.3329359,121200.0,121190.0,0.60537441]
[1754878808655,1.3359359,121200.0,121190.0,0.60537441]
[1754878808856,1.71573062,121200.0,121190.0,0.60537441]
[1754878809356,1.5019599,121200.0,121190.0,0.60537441]
[1754878809554,1.25344,121200.0,121190.0,0.65536441]
[1754878809857,1.25544,121200.0,121190.0,0.55419]
[1754878810660,0.3658,121200.0,121190.0,0.55419]
[1754878810850,2.396,121200.0,121190.0,0.55419]
[1754878811350,2.396,121200.0,121190.0,0.96354767]
[1754878811546,1.50652,121200.0,121190.0,1.04605027]
[1754878811747,0.8944,121200.0,121190.0,1.34234239]
[1754878811955,0.3658,121200.0,121190.0,1.33824239]
[1754878812161,0.3658,121200.0,121190.0,0.95944767]
[1754878812162,1.2552,121200.0,121190.0,0.95944767]
[1754878812753,0.3658,121200.0,121190.0,0.95944767]
[1754878812957,1.2552,121200.0,121190.0,0.95944767]
[1754878814357,1.25512,121200.0,121190.0,0.95944767]
[1754878814553,1.25512,121200.0,121190.0,1.06062208]
[1754878815562,1.25512,121200.0,121190.0,0.95944767]
[1754878816360,1.25512,121200.0,121190.0,1.06068468]
[1754878817057,0.3658,121200.0,121190.0,0.71958767]
[1754878817366,1.2548,121200.0,121190.0,0.55419]
[1754878817667,1.2548,121200.0,121190.0,0.65542701]
[1754878819062,1.2548,121200.0,121190.0,0.55419]
[1754878819968,1.2548,121200.0,121180.0,0.38771429]
[1754878819969,0.29631,121190.0,121180.0,0.38771429]
[1754878820170,0.65711,121190.0,121180.0,0.55311196]
[1754878820366,0.65711,121190.0,121180.0,0.39181429]
[1754878820568,0.65711,121190.0,121180.0,0.55721196]
[1754878820865,0.70327,121190.0,121180.0,0.55721196]
[1754878821168,0.70437,121190.0,121180.0,0.55731196]
[1754878821367,0.70437,121190.0,121180.0,0.41355767]
[1754878821570,0.70437,121190.0,121180.0,0.91355767]
[1754878822069,0.70437,121190.0,121180.0,0.96354767]
[1754878822972,0.70637,121190.0,121180.0,0.96354767]
[1754878823171,0.66021,121190.0,121180.0,0.96354767]
[1754878824174,1.08516472,121190.0,121180.0,0.5042]
[1754878824367,2.05606752,121190.0,121180.0,0.5042]
[1754878824575,1.16766752,121190.0,121180.0,0.5001]
[1754878824769,1.33260753,121190.0,121180.0,0.35165429]
[1754878825072,2.22096753,121190.0,121180.0,0.35165429]
[1754878825271,1.63260753,121190.0,121180.0,0.29756429]
[1754878825473,1.63260753,121190.0,121170.0,0.10136894]
[1754878825474,0.0825098,121180.0,121170.0,0.10136894]
[1754878825677,1.96278452,121180.0,121170.0,0.10136894]
[1754878825873,3.31617252,121180.0,121170.0,0.10556894]
[1754878826376,3.31617252,121180.0,121170.0,0.0042]
[1754878826672,3.32117252,121180.0,121170.0,0.5042]
[1754878826871,3.32117252,121180.0,121170.0,0.5001]
[1754878827272,3.32317252,121180.0,121170.0,0.5001]
[1754878827468,2.43493252,121180.0,121170.0,0.5001]
[1754878827668,2.6442578,121180.0,121170.0,0.60145176]
[1754878827868,2.6442578,121180.0,121170.0,0.65144176]
[1754878828062,1.673628,121180.0,121170.0,0.55009]
[1754878828269,2.39662,121180.0,121170.0,0.79405]
[1754878829062,2.39662,121180.0,121170.0,0.97788009]
[1754878829371,1.50858,121180.0,121170.0,1.52207248]
[1754878829571,1.50858,121180.0,121170.0,1.42075889]
[1754878829874,2.39358,121180.0,121170.0,1.42075889]
[1754878830267,1.50558,121180.0,121170.0,1.42075889]
[1754878830467,2.38946,121180.0,121170.0,1.42375889]
[1754878830768,1.50158,121180.0,121170.0,1.42375889]
[1754878831074,1.14078,121180.0,121170.0,1.97143891]
[1754878831269,0.84078,121180.0,121170.0,2.13648691]
[1754878831568,1.72858,121180.0,121170.0,2.13748691]
[1754878831780,1.37858,121180.0,121170.0,2.13748691]
[1754878832069,1.37854,121180.0,121170.0,2.13748691]
[1754878832269,1.37854,121180.0,121170.0,1.59080689]
[1754878832464,1.37854,121180.0,121170.0,1.73548374]
[1754878832668,0.49078,121180.0,121170.0,1.73548374]
[1754878832864,1.37846,121180.0,121170.0,1.73548374]
[1754878833066,1.37846,121180.0,121170.0,1.57043574]
[1754878833673,1.37846,121180.0,121170.0,1.48791924]
[1754878833969,2.01479,121180.0,121170.0,0.91545767]
[1754878834175,2.01475,121180.0,121170.0,0.91545767]
[1754878834577,0.63663,121180.0,121170.0,0.91545767]
[1754878834876,1.52403,121180.0,121170.0,0.91545767]
[1754878835069,1.52403,121180.0,121170.0,0.91345767]
[1754878835570,1.52395,121180.0,121170.0,0.96344767]
[1754878835777,1.52391,121180.0,121170.0,0.96344767]
[1754878835975,1.52391,121180.0,121170.0,1.15032769]
[1754878836376,1.52391,121180.0,121170.0,1.52912241]
[1754878837174,1.52391,121180.0,121170.0,1.34224239]
[1754878837370,1.52391,121180.0,121170.0,0.96344767]
[1754878837968,0.56539,121180.0,121170.0,1.34224239]
[1754878838168,0.0001,121180.0,121170.0,1.34224239]
[1754878838377,0.8871,121180.0,121170.0,1.56949782]
[1754878838569,0.8871,121180.0,121170.0,1.56849782]
[1754878838768,0.0001,121180.0,121170.0,1.56849782]
[1754878838973,0.88702,121180.0,121170.0,1.48598152]
[1754878839176,0.93554,121180.0,121170.0,1.1112868]
[1754878839477,0.88702,121180.0,121170.0,1.57259782]
[1754878839874,0.88702,121180.0,121170.0,1.56959782]
[1754878840068,0.04852,121220.0,121210.0,0.07088]
[1754878840273,0.07176,121220.0,121200.0,0.95761039]
[1754878840478,0.07176,121220.0,121210.0,0.16949767]
[1754878840674,0.95848,121220.0,121210.0,0.33823767]
[1754878840976,1.18082,121220.0,121210.0,0.33823767]
[1754878841169,1.18092,121220.0,121210.0,0.33833767]
[1754878841772,1.18092,121220.0,121210.0,0.83833767]
[1754878841978,1.54172,121220.0,121210.0,0.66959767]
[1754878842171,0.655,121220.0,121210.0,0.66959767]
[1754878842373,1.54156,121220.0,121210.0,0.66959767]
[1754878842567,1.54156,121220.0,121210.0,0.5042]
[1754878843473,1.54256,121220.0,121210.0,0.5042]
[1754878843774,0.657,121220.0,121210.0,0.5866894]
[1754878843983,0.22444,121220.0,121210.0,1.03755707]
[1754878844272,1.11072,121220.0,121210.0,1.51759814]
[1754878844478,1.11072,121220.0,121210.0,1.13880342]
[1754878844670,1.18248,121220.0,121210.0,1.13880342]
[1754878845066,1.18148,121220.0,121210.0,1.13880342]
[1754878845277,1.18248,121220.0,121210.0,1.13880342]
[1754878845479,0.2962,121220.0,121210.0,1.13880342]
[1754878845670,1.1812,121220.0,121210.0,1.13880342]
[1754878845866,1.1812,121220.0,121210.0,1.05631402]
[1754878846067,1.1802,121220.0,121210.0,1.01046402]
[1754878846373,1.1802,121220.0,121210.0,1.09295342]
[1754878846580,1.1802,121220.0,121210.0,0.99170707]
[1754878846773,1.1802,121220.0,121210.0,0.90921767]
[1754878846973,1.1802,121220.0,121210.0,0.99170707]
[1754878847572,1.1802,121220.0,121210.0,0.90921767]
[1754878847769,0.0001,121220.0,121210.0,1.03755747]
[1754878847981,0.0001,121220.0,121210.0,1.87829731]
[1754878848173,0.0001,121220.0,121210.0,1.87419731]
[1754878848368,1.24056,121260.0,121240.0,0.2932582]
[1754878848575,1.24056,121260.0,121250.0,1.27292499]
[1754878848774,0.48113229,121290.0,121250.0,1.43786899]
[1754878848975,0.3608,121280.0,121250.0,1.27878884]
[1754878849178,1.24632,121280.0,121250.0,2.04677114]
[1754878849471,1.24628,121280.0,121250.0,0.74894224]
[1754878849671,0.0001,121280.0,121270.0,0.0824489]
[1754878849876,0.36085229,121290.0,121270.0,0.351443]
[1754878849877,0.73974701,121290.0,121270.0,0.351443]
[1754878850078,0.37894701,121290.0,121270.0,1.29641316]
[1754878850276,0.00015229,121290.0,121270.0,2.26427718]
[1754878850469,0.00015229,121290.0,121270.0,1.44586056]
[1754878850673,0.3608,121310.0,121290.0,0.24830405]
[1754878850873,0.3608,121310.0,121290.0,0.85410405]
[1754878851071,0.73959472,121330.0,121310.0,0.2472631]
[1754878851271,0.3608,121320.0,121310.0,1.1773031]
[1754878851475,0.3608,121330.0,121310.0,0.7164647]
[1754878851677,0.3608,121330.0,121310.0,0.8164647]
[1754878851874,0.3609,121330.0,121310.0,1.78399134]
[1754878852378,0.3609,121330.0,121310.0,1.25979134]
[1754878852379,0.0001,121330.0,121310.0,1.25979134]
[1754878852574,0.6915154,121340.0,121330.0,0.0824075]
[1754878852877,0.6915154,121340.0,121330.0,0.2274075]
[1754878852878,0.67382505,121340.0,121330.0,0.2274075]
[1754878853075,1.55862505,121340.0,121330.0,0.35179405]
[1754878853274,1.55862505,121340.0,121330.0,0.43422069]
[1754878853275,0.67382505,121340.0,121330.0,0.43422069]
[1754878853476,0.3608,121340.0,121330.0,0.43422069]
[1754878853771,0.3608,121340.0,121330.0,0.60315269]
[1754878853977,0.3608,121340.0,121330.0,0.60525269]
[1754878854386,0.3608,121340.0,121330.0,1.10525269]
[1754878854784,0.3608,121340.0,121330.0,0.94042069]
[1754878855084,0.3608,121340.0,121330.0,0.94242069]
[1754878855282,0.67382505,121340.0,121330.0,0.93832069]
[1754878856175,1.55790505,121340.0,121330.0,0.93832069]
[1754878856784,0.3608,121340.0,121330.0,0.93832069]
[1754878857080,1.55750505,121340.0,121330.0,0.89332069]
[1754878857278,0.72234505,121340.0,121330.0,0.89332099]
[1754878857680,1.60594505,121340.0,121330.0,0.89332099]
[1754878857981,1.60594505,121340.0,121330.0,0.81501319]
[1754878858184,1.60586505,121340.0,121330.0,0.81501319]
[1754878858385,0.72234505,121340.0,121330.0,0.81501319]
[1754878858582,1.77968505,121340.0,121330.0,0.89742099]
[1754878858788,0.3608,121340.0,121330.0,0.89742099]
[1754878859185,1.2442,121340.0,121330.0,0.89742099]